[Event "Lueneburg Open-A 2019"]
[Site "Lueneburg"]
[Date "2019.08.08"]
[Round "6.7"]
[White "Colpe, Malte"]
[Black "Mueer, Sebastian"]
[Result "1-0"]
[ECO "A40"]
[WhiteElo "2367"]
[BlackElo "2198"]
[Annotator "NA"]
[PlyCount "69"]
[EventDate "2019.08.03"]
[EventType "swiss"]
[EventCountry "GER"]
[SourceTitle "playchess.com"]
[Source "ChessBase"]
[SourceQuality "1"]
[TimeControl "40/5400+30:1800+30"]

1. g3 {[%emt 0:00:00]} c5 {[%emt 0:08:47]} 2. Bg2 {[%emt 0:00:10]} g6 {[%emt 0:00:13]} 3. Nf3 {[%emt 0:01:46]} Bg7 {[%emt 0:00:22]} 4. d4 {[%emt 0:02:40]} cxd4 {[%emt 0:00:20]} 5. Nxd4 {[%emt 0:00:07]} d5 {[%emt 0:01:04]} 6. Nb3 {[%emt 0:01:59]} Nf6 {[%emt 0:01:32]} 7. c4 {[%emt 0:12:04]} a5 {[%emt 0:18:44]} 8. cxd5 {[%emt 0:08:39]} a4 {[%emt 0:00:32]} 9. Nd4 {[%emt 0:10:32]} Nxd5 {[%emt 0:01:39]} 10. O-O {[%emt 0:07:16]} O-O {[%emt 0:00:29]} 11. Nb5 {[%emt 0:02:45]} Ra5 {[%emt 0:12:08]} 12. N1a3 {[%emt 0:03:01]} Be6 {[%emt 0:03:47]} 13. Qd2 {[%emt 0:12:15]} Nc6 {[%emt 0:06:12]} 14. Rd1 {[%emt 0:00:42]} Qb6 {[%emt 0:19:33]} 15. Nc4 {[%emt 0:16:01]} Qxb5 {[%emt 0:00:02]} 16. Nxa5 {[%emt 0:00:08]} Nxa5 {[%emt 0:07:41]} 17. Bxd5 {[%emt 0:00:08]} Rd8 {[%emt 0:00:42]} 18. e4 {[%emt 0:00:50]} a3 {[%emt 0:05:00]} 19. Rb1 {[%emt 0:01:49]} Bxd5 {[%emt 0:04:38]} 20. exd5 {[%emt 0:00:24]} Nc4 {[%emt 0:00:21]} 21. Qe2 {[%emt 0:03:47]} axb2 {[%emt 0:00:01]} 22. Bxb2 {[%emt 0:05:15]} Bxb2 {[%emt 0:00:18]} 23. Rd4 {[%emt 0:04:07]} Rc8 {[%emt 0:02:20]} 24. Qxe7 {[%emt 0:01:00]} Re8 {[%emt 0:02:25]} 25. Qh4 {[%emt 0:00:11]} Na3 {[%emt 0:02:35]} 26. Rb4 {[%emt 0:00:17]} Qxd5 {[%emt 0:00:48]} 27. R4xb2 {[%emt 0:03:06]} Nc4 {[%emt 0:00:01]} 28. Rb5 {[%emt 0:01:00]} Qd3 {[%emt 0:00:46]} 29. R5b3 {[%emt 0:00:52]} Qe2 {[%emt 0:00:29]} 30. Qf6 {[%emt 0:00:31]} b6 {[%emt 0:00:39]} 31. Rf3 {[%emt 0:00:20]} Re7 {[%emt 0:00:36]} 32. Rc1 {[%emt 0:00:42]} b5 {[%emt 0:00:24]} 33. h4 {[%emt 0:00:20]} Qd2 {[%emt 0:00:40]} 34. Qxe7 {[%emt 0:00:34]} Qxc1+ {[%emt 0:00:02]} 35. Kg2 {[%emt 0:00:23]} 1-0

[Event "Lueneburg Open-A 2019"]
[Site "Lueneburg"]
[Date "2019.08.08"]
[Round "6.8"]
[White "Voigt, Martin"]
[Black "Wachinger, David"]
[Result "1/2-1/2"]
[ECO "B51"]
[WhiteElo "2344"]
[BlackElo "2045"]
[Annotator "NA"]
[PlyCount "61"]
[EventDate "2019.08.03"]
[EventType "swiss"]
[EventCountry "GER"]
[SourceTitle "playchess.com"]
[Source "ChessBase"]
[SourceQuality "1"]
[TimeControl "40/5400+30:1800+30"]

1. e4 {[%emt 0:00:00]} c5 {[%emt 0:00:00]} 2. Nf3 {[%emt 0:00:00]} d6 {[%emt 0:00:00]} 3. Bb5+ {[%emt 0:00:00]} Nd7 {[%emt 0:00:00]} 4. d4 {[%emt 0:00:20]} cxd4 {[%emt 0:00:00]} 5. Qxd4 {[%emt 0:00:06]} a6 {[%emt 0:00:14]} 6. Bxd7+ {[%emt 0:00:08]} Bxd7 {[%emt 0:00:05]} 7. Nc3 {[%emt 0:01:01]} e6 {[%emt 0:00:17]} 8. Bg5 {[%emt 0:01:32]} Qc7 {[%emt 0:00:07]} 9. O-O {[%emt 0:01:35]} Rc8 {[%emt 0:15:41]} 10. Rfe1 {[%emt 0:08:33]} e5 {[%emt 0:02:07]} 11. Qd2 {[%emt 0:01:23]} h6 {[%emt 0:00:53]} 12. Bh4 {[%emt 0:05:43]} g5 {[%emt 0:01:04]} 13. Bg3 {[%emt 0:00:15]} Nf6 {[%emt 0:01:08]} 14. Rad1 {[%emt 0:15:56]} Be7 {[%emt 0:00:52]} 15. Nd5 {[%emt 0:07:18]} Nxd5 {[%emt 0:05:59]} 16. exd5 {[%emt 0:00:35]} Qxc2 {[%emt 0:37:19]} 17. Qe3 {[%emt 0:04:00]} O-O {[%emt 0:02:25]} 18. h4 {[%emt 0:04:10]} Qc5 {[%emt 0:04:20]} 19. Qb3 {[%emt 0:03:26]} g4 {[%emt 0:06:46]} 20. Nd2 {[%emt 0:02:46]} b5 {[%emt 0:10:07]} 21. Ne4 {[%emt 0:08:22]} Qc4 {[%emt 0:00:00]} 22. Qe3 {[%emt 0:00:37]} Kh7 {[%emt 0:00:02]} 23. b3 {[%emt 0:01:12]} Qb4 {[%emt 0:02:46]} 24. a3 {[%emt 0:04:17]} Qxa3 {[%emt 0:00:44]} 25. Ra1 {[%emt 0:00:17]} Qb4 {[%emt 0:00:02]} 26. Rxa6 {[%emt 0:00:08]} f5 {[%emt 0:00:38]} 27. Nxd6 {[%emt 0:04:55]} Bxd6 {[%emt 0:02:17]} 28. Bxe5 {[%emt 0:01:08]} f4 {[%emt 0:03:58]} 29. Qe2 {[%emt 0:05:11]} Bxe5 {[%emt 0:02:10]} 30. Qxe5 {[%emt 0:00:08]} Rce8 {[%emt 0:01:24]} 31. Rxh6+ {[%emt 0:20:28]} 1/2-1/2

[Event "Lueneburg Open-A 2019"]
[Site "Lueneburg"]
[Date "2019.08.08"]
[Round "6.9"]
[White "Jahncke, Giso"]
[Black "Koenig, Christian"]
[Result "1-0"]
[ECO "E68"]
[WhiteElo "2325"]
[BlackElo "2026"]
[Annotator "NA"]
[PlyCount "57"]
[EventDate "2019.08.03"]
[EventType "swiss"]
[EventCountry "GER"]
[SourceTitle "playchess.com"]
[Source "ChessBase"]
[SourceQuality "1"]
[TimeControl "40/5400+30:1800+30"]

1. d4 {[%emt 0:00:00]} d6 {[%emt 0:04:29]} 2. Nf3 {[%emt 0:00:19]} Nf6 {[%emt 0:00:14]} 3. c4 {[%emt 0:00:11]} g6 {[%emt 0:00:10]} 4. Nc3 {[%emt 0:00:05]} Bg7 {[%emt 0:00:06]} 5. g3 {[%emt 0:00:09]} O-O {[%emt 0:00:23]} 6. Bg2 {[%emt 0:00:05]} Nbd7 {[%emt 0:01:16]} 7. O-O {[%emt 0:00:09]} e5 {[%emt 0:00:29]} 8. e4 {[%emt 0:00:19]} exd4 {[%emt 0:02:49]} 9. Nxd4 {[%emt 0:00:12]} Re8 {[%emt 0:00:06]} 10. h3 {[%emt 0:00:25]} Nc5 {[%emt 0:03:08]} 11. Re1 {[%emt 0:01:36]} Bd7 {[%emt 0:04:22]} 12. b4 {[%emt 0:14:31]} Ne6 {[%emt 0:00:33]} 13. Nb3 {[%emt 0:00:10]} Qc8 {[%emt 0:10:01]} 14. c5 {[%emt 0:12:21]} Nh5 {[%emt 0:14:24]} 15. Qd3 {[%emt 0:04:21]} dxc5 {[%emt 0:02:13]} 16. bxc5 {[%emt 0:01:35]} h6 {[%emt 0:05:41]} 17. h4 {[%emt 0:05:25]} Nd8 {[%emt 0:01:37]} 18. Bb2 {[%emt 0:06:15]} Nc6 {[%emt 0:02:38]} 19. Qc2 {[%emt 0:10:17]} Bg4 {[%emt 0:05:39]} 20. Nd5 {[%emt 0:02:16]} Ne5 {[%emt 0:00:59]} 21. f4 {[%emt 0:07:08]} Nf3+ {[%emt 0:02:08]} 22. Bxf3 {[%emt 0:00:04]} Bxf3 {[%emt 0:00:09]} 23. Bxg7 {[%emt 0:01:14]} Qg4 {[%emt 0:02:34]} 24. Qf2 {[%emt 0:03:51]} Kxg7 {[%emt 0:00:36]} 25. Ne3 {[%emt 0:00:29]} Qxg3+ {[%emt 0:02:55]} 26. Qxg3 {[%emt 0:00:04]} Nxg3 {[%emt 0:00:10]} 27. Kf2 {[%emt 0:00:04]} Nxe4+ {[%emt 0:00:46]} 28. Kxf3 {[%emt 0:00:05]} Rh8 {[%emt 0:33:25]} 29. Kxe4 {[%emt 0:30:50]} 1-0

[Event "Lueneburg Open-A 2019"]
[Site "Lueneburg"]
[Date "2019.08.08"]
[Round "6.10"]
[White "Hommer, Jeremy"]
[Black "Stork, Oliver"]
[Result "1-0"]
[ECO "D02"]
[WhiteElo "2083"]
[BlackElo "2322"]
[Annotator "NA"]
[PlyCount "59"]
[EventDate "2019.08.03"]
[EventType "swiss"]
[EventCountry "GER"]
[SourceTitle "playchess.com"]
[Source "ChessBase"]
[SourceQuality "1"]
[TimeControl "40/5400+30:1800+30"]

1. d4 {[%emt 0:00:00]} Nf6 {[%emt 0:00:00]} 2. Bf4 {[%emt 0:00:00]} d5 {[%emt 0:00:00]} 3. e3 {[%emt 0:00:00]} c5 {[%emt 0:00:00]} 4. c3 {[%emt 0:00:00]} Nc6 {[%emt 0:00:05]} 5. Nd2 {[%emt 0:00:00]} e6 {[%emt 0:00:45]} 6. Ngf3 {[%emt 0:00:14]} Bd6 {[%emt 0:00:17]} 7. Bg3 {[%emt 0:00:08]} O-O {[%emt 0:00:10]} 8. Bd3 {[%emt 0:00:06]} b6 {[%emt 0:00:18]} 9. Qe2 {[%emt 0:00:11]} Bb7 {[%emt 0:00:08]} 10. Rd1 {[%emt 0:00:07]} Re8 {[%emt 0:01:10]} 11. e4 {[%emt 0:00:58]} Be7 {[%emt 0:00:28]} 12. e5 {[%emt 0:00:16]} Nh5 {[%emt 0:00:09]} 13. h4 {[%emt 0:00:08]} Nxg3 {[%emt 0:00:09]} 14. fxg3 {[%emt 0:00:05]} Rf8 {[%emt 0:03:26]} 15. O-O {[%emt 0:18:04]} Rc8 {[%emt 0:05:16]} 16. Rf2 {[%emt 0:02:32]} cxd4 {[%emt 0:10:46]} 17. Nxd4 {[%emt 0:02:45]} Qc7 {[%emt 0:10:51]} 18. N2f3 {[%emt 0:02:16]} a6 {[%emt 0:00:37]} 19. Bb1 {[%emt 0:09:23]} Nxd4 {[%emt 0:11:58]} 20. Nxd4 {[%emt 0:14:59]} b5 {[%emt 0:04:13]} 21. Rdf1 {[%emt 0:04:53]} Bc6 {[%emt 0:24:01]} 22. Bxh7+ {[%emt 0:06:56]} Kxh7 {[%emt 0:00:09]} 23. Rxf7 {[%emt 0:00:05]} Be8 {[%emt 0:06:57]} 24. Rxf8 {[%emt 0:03:43]} Bxf8 {[%emt 0:01:45]} 25. Rxf8 {[%emt 0:00:43]} Bg6 {[%emt 0:03:08]} 26. Rxc8 {[%emt 0:06:12]} Qxc8 {[%emt 0:00:04]} 27. Qg4 {[%emt 0:03:53]} Qc4 {[%emt 0:00:08]} 28. Qf4 {[%emt 0:00:14]} Qxa2 {[%emt 0:07:31]} 29. Nxe6 {[%emt 0:00:54]} Qxb2 {[%emt 0:00:16]} 30. Qf8 {[%emt 0:03:19]} 1-0

[Event "Lueneburg Open-A 2019"]
[Site "Lueneburg"]
[Date "2019.08.08"]
[Round "6.11"]
[White "Kolbus, Dietmar"]
[Black "Blum, Frederik"]
[Result "1-0"]
[ECO "A25"]
[WhiteElo "2281"]
[BlackElo "2037"]
[Annotator "NA"]
[PlyCount "57"]
[EventDate "2019.08.03"]
[EventType "swiss"]
[EventCountry "GER"]
[SourceTitle "playchess.com"]
[Source "ChessBase"]
[SourceQuality "1"]
[TimeControl "40/5400+30:1800+30"]

1. c4 {[%emt 0:00:00]} e5 {[%emt 0:00:00]} 2. g3 {[%emt 0:00:00]} Nc6 {[%emt 0:00:15]} 3. Bg2 {[%emt 0:00:00]} Bc5 {[%emt 0:00:37]} 4. Nc3 {[%emt 0:00:05]} a6 {[%emt 0:00:25]} 5. Nf3 {[%emt 0:00:53]} Nf6 {[%emt 0:06:32]} 6. Nxe5 {[%emt 0:01:30]} Bxf2+ {[%emt 0:00:23]} 7. Kxf2 {[%emt 0:00:06]} Nxe5 {[%emt 0:00:12]} 8. b3 {[%emt 0:00:37]} c5 {[%emt 0:00:45]} 9. Bb2 {[%emt 0:04:37]} O-O {[%emt 0:08:31]} 10. Rf1 {[%emt 0:07:13]} d6 {[%emt 0:02:25]} 11. Kg1 {[%emt 0:00:06]} Qe7 {[%emt 0:10:58]} 12. Qc2 {[%emt 0:02:35]} Be6 {[%emt 0:06:08]} 13. Rae1 {[%emt 0:00:22]} h6 {[%emt 0:03:56]} 14. e3 {[%emt 0:00:29]} Nc6 {[%emt 0:06:24]} 15. d4 {[%emt 0:00:41]} Bg4 {[%emt 0:03:35]} 16. Qd2 {[%emt 0:05:06]} Rae8 {[%emt 0:05:54]} 17. Nd5 {[%emt 0:03:26]} Nxd5 {[%emt 0:00:23]} 18. cxd5 {[%emt 0:00:28]} Nd8 {[%emt 0:04:30]} 19. dxc5 {[%emt 0:11:07]} dxc5 {[%emt 0:00:38]} 20. Qc3 {[%emt 0:00:37]} f6 {[%emt 0:02:32]} 21. Qc4 {[%emt 0:00:26]} Bc8 {[%emt 0:07:32]} 22. d6+ {[%emt 0:00:31]} Qf7 {[%emt 0:00:24]} 23. Qxc5 {[%emt 0:00:48]} Ne6 {[%emt 0:06:14]} 24. Qb6 {[%emt 0:01:48]} Ng5 {[%emt 0:01:27]} 25. Ba3 {[%emt 0:18:34]} Qd7 {[%emt 0:04:29]} 26. Rc1 {[%emt 0:05:52]} Ne6 {[%emt 0:07:28]} 27. Bh3 {[%emt 0:04:04]} Rf7 {[%emt 0:06:40]} 28. e4 {[%emt 0:01:13]} Rd8 {[%emt 0:01:11]} 29. Bxe6 {[%emt 0:31:16]} 1-0

[Event "Lueneburg Open-A 2019"]
[Site "Lueneburg"]
[Date "2019.08.08"]
[Round "6.12"]
[White "von Estorff, Jacob"]
[Black "Colbow, Collin"]
[Result "1-0"]
[ECO "B95"]
[WhiteElo "2055"]
[BlackElo "2167"]
[Annotator "NA"]
[PlyCount "71"]
[EventDate "2019.08.03"]
[EventType "swiss"]
[EventCountry "GER"]
[SourceTitle "playchess.com"]
[Source "ChessBase"]
[SourceQuality "1"]
[TimeControl "40/5400+30:1800+30"]

1. e4 {[%emt 0:00:00]} c5 {[%emt 0:00:00]} 2. Nf3 {[%emt 0:00:00]} d6 {[%emt 0:00:00]} 3. d4 {[%emt 0:00:00]} cxd4 {[%emt 0:00:00]} 4. Nxd4 {[%emt 0:00:00]} Nf6 {[%emt 0:00:02]} 5. Nc3 {[%emt 0:00:12]} a6 {[%emt 0:00:17]} 6. Bg5 {[%emt 0:03:41]} e6 {[%emt 0:02:27]} 7. Qd2 {[%emt 0:03:21]} Be7 {[%emt 0:02:15]} 8. O-O-O {[%emt 0:01:58]} b5 {[%emt 0:04:37]} 9. Bd3 {[%emt 0:04:56]} Bb7 {[%emt 0:03:54]} 10. f4 {[%emt 0:11:34]} Nbd7 {[%emt 0:18:28]} 11. Rhe1 {[%emt 0:02:43]} h6 {[%emt 0:01:38]} 12. e5 {[%emt 0:07:51]} hxg5 {[%emt 0:31:47]} 13. exf6 {[%emt 0:00:39]} gxf6 {[%emt 0:03:23]} 14. Rxe6 {[%emt 0:05:16]} Qb6 {[%emt 0:02:15]} 15. Rxe7+ {[%emt 0:11:42]} Kxe7 {[%emt 0:00:10]} 16. Nf5+ {[%emt 0:00:37]} Kf8 {[%emt 0:00:58]} 17. Be4 {[%emt 0:03:26]} Bxe4 {[%emt 0:07:24]} 18. Nxe4 {[%emt 0:03:29]} Qc6 {[%emt 0:03:21]} 19. Nexd6 {[%emt 0:02:19]} Rxh2 {[%emt 0:00:38]} 20. Qe3 {[%emt 0:05:45]} Rh7 {[%emt 0:02:58]} 21. Re1 {[%emt 0:05:33]} Nc5 {[%emt 0:00:57]} 22. Qe7+ {[%emt 0:02:44]} Kg8 {[%emt 0:00:03]} 23. Qxf6 {[%emt 0:01:55]} Kf8 {[%emt 0:04:51]} 24. Qe7+ {[%emt 0:00:47]} Kg8 {[%emt 0:00:05]} 25. Qxg5+ {[%emt 0:00:07]} Kf8 {[%emt 0:00:18]} 26. Qe7+ {[%emt 0:02:53]} Kg8 {[%emt 0:00:04]} 27. Qf6 {[%emt 0:01:18]} Kf8 {[%emt 0:00:39]} 28. Kb1 {[%emt 0:00:43]} b4 {[%emt 0:03:22]} 29. b3 {[%emt 0:03:11]} a5 {[%emt 0:00:11]} 30. Nh6 {[%emt 0:04:21]} Qc7 {[%emt 0:05:55]} 31. Nhxf7 {[%emt 0:01:25]} Ne4 {[%emt 0:00:34]} 32. Rxe4 {[%emt 0:01:38]} Rh1+ {[%emt 0:00:33]} 33. Kb2 {[%emt 0:00:04]} Qc3+ {[%emt 0:00:53]} 34. Qxc3 {[%emt 0:00:05]} bxc3+ {[%emt 0:00:08]} 35. Kxc3 {[%emt 0:00:04]} Rg1 {[%emt 0:00:50]} 36. Re2 {[%emt 0:00:05]} 1-0

[Event "Lueneburg Open-A 2019"]
[Site "Lueneburg"]
[Date "2019.08.08"]
[Round "6.14"]
[White "Comes, Bruno"]
[Black "Wobbe, Sven"]
[Result "1-0"]
[ECO "B42"]
[WhiteElo "2165"]
[BlackElo "2019"]
[Annotator "NA"]
[PlyCount "85"]
[EventDate "2019.08.03"]
[EventType "swiss"]
[EventCountry "GER"]
[SourceTitle "playchess.com"]
[Source "ChessBase"]
[SourceQuality "1"]
[TimeControl "40/5400+30:1800+30"]

1. e4 {[%emt 0:00:00]} c5 {[%emt 0:00:01]} 2. Nf3 {[%emt 0:00:00]} e6 {[%emt 0:00:19]} 3. d4 {[%emt 0:00:02]} cxd4 {[%emt 0:00:07]} 4. Nxd4 {[%emt 0:00:08]} a6 {[%emt 0:00:06]} 5. Bd3 {[%emt 0:00:30]} Nf6 {[%emt 0:00:10]} 6. O-O {[%emt 0:00:38]} d6 {[%emt 0:00:20]} 7. c4 {[%emt 0:01:00]} Be7 {[%emt 0:01:34]} 8. Nc3 {[%emt 0:00:56]} Nc6 {[%emt 0:02:31]} 9. Nc2 {[%emt 0:06:42]} O-O {[%emt 0:02:55]} 10. Be3 {[%emt 0:03:08]} b6 {[%emt 0:04:40]} 11. f4 {[%emt 0:03:31]} Bb7 {[%emt 0:05:19]} 12. Qe2 {[%emt 0:03:26]} Rb8 {[%emt 0:05:34]} 13. Rad1 {[%emt 0:04:59]} Qc7 {[%emt 0:02:51]} 14. g4 {[%emt 0:06:02]} Nd7 {[%emt 0:02:24]} 15. g5 {[%emt 0:13:00]} Rfe8 {[%emt 0:16:49]} 16. Rf3 {[%emt 0:05:52]} Bd8 {[%emt 0:15:19]} 17. Rh3 {[%emt 0:04:52]} Nf8 {[%emt 0:05:33]} 18. Rf1 {[%emt 0:07:47]} g6 {[%emt 0:07:23]} 19. Qf2 {[%emt 0:05:27]} Ne7 {[%emt 0:02:37]} 20. Nd4 {[%emt 0:07:39]} d5 {[%emt 0:03:40]} 21. cxd5 {[%emt 0:03:38]} exd5 {[%emt 0:00:07]} 22. f5 {[%emt 0:01:51]} dxe4 {[%emt 0:02:36]} 23. Bf4 {[%emt 0:00:51]} Qd7 {[%emt 0:05:27]} 24. Bxb8 {[%emt 0:05:06]} exd3 {[%emt 0:00:10]} 25. Rxd3 {[%emt 0:05:30]} Nc6 {[%emt 0:04:12]} 26. fxg6 {[%emt 0:02:21]} Nxg6 {[%emt 0:02:17]} 27. Nxc6 {[%emt 0:01:17]} Qxc6 {[%emt 0:00:56]} 28. Qxf7+ {[%emt 0:00:13]} Kh8 {[%emt 0:00:19]} 29. Nd5 {[%emt 0:00:33]} Bxg5 {[%emt 0:04:51]} 30. Rc3 {[%emt 0:03:27]} Qxd5 {[%emt 0:01:04]} 31. Qxe8+ {[%emt 0:00:04]} Kg7 {[%emt 0:00:22]} 32. Qf7+ {[%emt 0:00:40]} Qxf7 {[%emt 0:02:33]} 33. Rxf7+ {[%emt 0:00:05]} Kxf7 {[%emt 0:00:14]} 34. Rc7+ {[%emt 0:00:05]} Ke6 {[%emt 0:00:17]} 35. Rxb7 {[%emt 0:00:07]} Be3+ {[%emt 0:00:23]} 36. Kg2 {[%emt 0:01:11]} h6 {[%emt 0:00:56]} 37. Kf3 {[%emt 0:02:20]} Bc5 {[%emt 0:00:30]} 38. Rh7 {[%emt 0:00:50]} Nh4+ {[%emt 0:00:50]} 39. Ke4 {[%emt 0:00:40]} Nf5 {[%emt 0:00:13]} 40. Bf4 {[%emt 0:00:52]} Bf8 {[%emt 0:00:38]} 41. Rb7 {[%emt 0:31:51]} Bc5 {[%emt 0:30:33]} 42. b4 {[%emt 0:00:00]} Bf2 {[%emt 0:00:00]} 43. Ra7 {[%emt 0:00:00]} 1-0

[Event "Lueneburg Open-A 2019"]
[Site "Lueneburg"]
[Date "2019.08.08"]
[Round "6.15"]
[White "Ramme, Christoph"]
[Black "Anderberg, Peter"]
[Result "0-1"]
[ECO "E05"]
[WhiteElo "2154"]
[BlackElo "2014"]
[Annotator "NA"]
[PlyCount "98"]
[EventDate "2019.08.03"]
[EventType "swiss"]
[EventCountry "GER"]
[SourceTitle "playchess.com"]
[Source "ChessBase"]
[SourceQuality "1"]
[TimeControl "40/5400+30:1800+30"]

1. d4 {[%emt 0:02:48]} Nf6 {[%emt 0:00:00]} 2. c4 {[%emt 0:00:04]} e6 {[%emt 0:00:00]} 3. g3 {[%emt 0:00:26]} d5 {[%emt 0:00:43]} 4. Nf3 {[%emt 0:00:16]} Be7 {[%emt 0:00:16]} 5. Bg2 {[%emt 0:00:15]} O-O {[%emt 0:00:03]} 6. O-O {[%emt 0:00:25]} dxc4 {[%emt 0:00:19]} 7. Qc2 {[%emt 0:00:31]} a6 {[%emt 0:00:25]} 8. a4 {[%emt 0:01:51]} Bd7 {[%emt 0:01:59]} 9. Qxc4 {[%emt 0:00:30]} Bc6 {[%emt 0:00:45]} 10. Bf4 {[%emt 0:01:36]} Nbd7 {[%emt 0:00:46]} 11. Nc3 {[%emt 0:05:08]} Nb6 {[%emt 0:00:19]} 12. Qd3 {[%emt 0:02:41]} Nbd5 {[%emt 0:02:28]} 13. Bg5 {[%emt 0:10:35]} Nxc3 {[%emt 0:04:04]} 14. bxc3 {[%emt 0:00:59]} Be4 {[%emt 0:01:17]} 15. Qe3 {[%emt 0:03:41]} Bd5 {[%emt 0:05:48]} 16. Qd3 {[%emt 0:01:02]} Be4 {[%emt 0:04:14]} 17. Qe3 {[%emt 0:00:07]} Bd5 {[%emt 0:01:58]} 18. Bxf6 {[%emt 0:01:58]} Bxf6 {[%emt 0:00:23]} 19. Qd3 {[%emt 0:00:26]} c5 {[%emt 0:05:49]} 20. e4 {[%emt 0:02:39]} Bc6 {[%emt 0:08:01]} 21. Rfd1 {[%emt 0:07:31]} Qa5 {[%emt 0:03:00]} 22. h4 {[%emt 0:04:54]} h6 {[%emt 0:04:23]} 23. e5 {[%emt 0:06:47]} Be7 {[%emt 0:00:37]} 24. Nd2 {[%emt 0:01:13]} Bxg2 {[%emt 0:01:24]} 25. Kxg2 {[%emt 0:00:14]} cxd4 {[%emt 0:04:57]} 26. cxd4 {[%emt 0:01:33]} Qd5+ {[%emt 0:01:19]} 27. Kg1 {[%emt 0:06:45]} Rfc8 {[%emt 0:04:55]} 28. Nf1 {[%emt 0:05:01]} Bb4 {[%emt 0:06:50]} 29. Ne3 {[%emt 0:02:20]} Qf3 {[%emt 0:00:50]} 30. Rdc1 {[%emt 0:02:09]} Rc6 {[%emt 0:06:46]} 31. Rc4 {[%emt 0:05:09]} Rac8 {[%emt 0:01:47]} 32. Rac1 {[%emt 0:02:31]} Be1 {[%emt 0:05:05]} 33. Qf1 {[%emt 0:05:26]} Bd2 {[%emt 0:02:51]} 34. Rxc6 {[%emt 0:01:25]} Rxc6 {[%emt 0:06:05]} 35. Rxc6 {[%emt 0:00:27]} Qxc6 {[%emt 0:00:13]} 36. Qd1 {[%emt 0:10:49]} Bxe3 {[%emt 0:03:00]} 37. fxe3 {[%emt 0:00:06]} b5 {[%emt 0:00:57]} 38. axb5 {[%emt 0:00:29]} axb5 {[%emt 0:00:08]} 39. Qb3 {[%emt 0:03:35]} Qf3 {[%emt 0:05:21]} 40. Kh2 {[%emt 0:00:26]} Qf2+ {[%emt 0:00:58]} 41. Kh3 {[%emt 0:33:10]} Qf1+ {[%emt 0:31:35]} 42. Kh2 {[%emt 0:00:00]} h5 {[%emt 0:00:00]} 43. Qb2 {[%emt 0:00:00]} Qc4 {[%emt 0:00:00]} 44. Kg2 {[%emt 0:00:00]} b4 {[%emt 0:00:00]} 45. Kf2 {[%emt 0:00:00]} b3 {[%emt 0:00:00]} 46. Ke1 {[%emt 0:00:00]} Qd3 {[%emt 0:00:00]} 47. Qd2 {[%emt 0:00:00]} Qb1+ {[%emt 0:00:00]} 48. Qd1 {[%emt 0:00:00]} Qa2 {[%emt 0:00:00]} 49. d5 {[%emt 0:00:00]} b2 {[%emt 0:00:00]} 0-1

[Event "Lueneburg Open-A 2019"]
[Site "Lueneburg"]
[Date "2019.08.08"]
[Round "6.16"]
[White "Deutschbein, Christopher"]
[Black "Haas, Frank-Martin"]
[Result "1/2-1/2"]
[ECO "C01"]
[WhiteElo "2015"]
[BlackElo "2152"]
[Annotator "NA"]
[PlyCount "47"]
[EventDate "2019.08.03"]
[EventType "swiss"]
[EventCountry "GER"]
[SourceTitle "playchess.com"]
[Source "ChessBase"]
[SourceQuality "1"]
[TimeControl "40/5400+30:1800+30"]

1. e4 {[%emt 0:00:00]} e6 {[%emt 0:00:00]} 2. d4 {[%emt 0:00:00]} d5 {[%emt 0:00:00]} 3. Nc3 {[%emt 0:00:02]} Nf6 {[%emt 0:00:33]} 4. Bg5 {[%emt 0:00:33]} Be7 {[%emt 0:05:06]} 5. exd5 {[%emt 0:01:29]} exd5 {[%emt 0:03:29]} 6. Qd2 {[%emt 0:00:48]} Bf5 {[%emt 0:06:26]} 7. Nf3 {[%emt 0:07:13]} c6 {[%emt 0:10:38]} 8. Nh4 {[%emt 0:11:21]} Be6 {[%emt 0:09:45]} 9. Bd3 {[%emt 0:09:18]} h6 {[%emt 0:12:30]} 10. Bf4 {[%emt 0:13:20]} Ne4 {[%emt 0:09:07]} 11. Bxe4 {[%emt 0:00:40]} dxe4 {[%emt 0:00:02]} 12. g3 {[%emt 0:00:27]} Nd7 {[%emt 0:15:20]} 13. Ng2 {[%emt 0:02:28]} g5 {[%emt 0:00:50]} 14. Be3 {[%emt 0:00:09]} Bh3 {[%emt 0:01:21]} 15. Rg1 {[%emt 0:03:16]} f5 {[%emt 0:01:42]} 16. O-O-O {[%emt 0:08:18]} Bg4 {[%emt 0:02:31]} 17. Rde1 {[%emt 0:01:30]} Nb6 {[%emt 0:00:53]} 18. d5 {[%emt 0:03:01]} Nxd5 {[%emt 0:03:13]} 19. Nxd5 {[%emt 0:00:28]} Qxd5 {[%emt 0:04:27]} 20. Qxd5 {[%emt 0:01:25]} cxd5 {[%emt 0:00:06]} 21. Bd4 {[%emt 0:00:32]} Rf8 {[%emt 0:02:32]} 22. Ne3 {[%emt 0:00:38]} Rd8 {[%emt 0:00:22]} 23. Bxa7 {[%emt 0:04:54]} Ra8 {[%emt 0:05:56]} 24. Bd4 {[%emt 0:00:49]} 1/2-1/2

[Event "Lueneburg Open-A 2019"]
[Site "Lueneburg"]
[Date "2019.08.08"]
[Round "6.17"]
[White "Terhorst, Jochen"]
[Black "Koellner, Aaron Noah"]
[Result "0-1"]
[ECO "C24"]
[WhiteElo "2144"]
[BlackElo "2044"]
[Annotator "NA"]
[PlyCount "48"]
[EventDate "2019.08.03"]
[EventType "swiss"]
[EventCountry "GER"]
[SourceTitle "playchess.com"]
[Source "ChessBase"]
[SourceQuality "1"]
[TimeControl "40/5400+30:1800+30"]

1. e4 {[%emt 1:30:30]} d6 {[%emt 1:30:30]} 2. Bc4 {[%emt 0:00:00]} Nf6 {[%emt 0:00:00]} 3. d3 {[%emt 0:00:00]} e5 {[%emt 0:00:00]} 4. f4 {[%emt 0:00:00]} Be7 {[%emt 0:00:00]} 5. Nf3 {[%emt 0:00:00]} c6 {[%emt 0:00:00]} 6. O-O {[%emt 0:00:00]} Qc7 {[%emt 0:00:00]} 7. Kh1 {[%emt 0:00:00]} O-O {[%emt 0:00:00]} 8. Nc3 {[%emt 0:00:00]} b5 {[%emt 0:00:00]} 9. Bb3 {[%emt 0:00:00]} a5 {[%emt 0:00:00]} 10. a4 {[%emt 0:00:00]} b4 {[%emt 0:00:00]} 11. Ne2 {[%emt 0:00:00]} Nbd7 {[%emt 0:00:00]} 12. c3 {[%emt 0:00:00]} d5 {[%emt 0:00:00]} 13. fxe5 {[%emt 0:00:00]} Nxe5 {[%emt 0:00:00]} 14. Bf4 {[%emt 0:00:00]} Bd6 {[%emt 0:00:00]} 15. d4 {[%emt 0:00:00]} Nxf3 {[%emt 0:00:00]} 16. Bxd6 {[%emt 0:00:00]} Qxd6 {[%emt 0:00:00]} 17. gxf3 {[%emt 0:00:00]} dxe4 {[%emt 0:00:00]} 18. Ng3 {[%emt 0:00:00]} exf3 {[%emt 0:00:00]} 19. Qxf3 {[%emt 0:00:00]} bxc3 {[%emt 0:00:00]} 20. bxc3 {[%emt 0:00:00]} Bg4 {[%emt 0:00:00]} 21. Qg2 {[%emt 0:00:00]} Rab8 {[%emt 0:00:00]} 22. Bc2 {[%emt 0:00:00]} g6 {[%emt 0:00:00]} 23. Rxf6 {[%emt 0:00:00]} Qxf6 {[%emt 0:00:00]} 24. Ne4 {[%emt 0:00:00]} Qf3 {[%emt 0:00:00]} 0-1